[Event "*** SCC Grand Prix: Titled Tuesday Blitz"]
[Site "Chess.com"]
[Date "2020.09.29"]
[Round "4"]
[White "ViktoriyaTarasova"]
[Black "ChessArchitect64"]
[Result "1-0"]
[WhiteElo "2271"]
[BlackElo "1979"]
[TimeControl "180+1"]
[EndTime "10:39:49 PDT"]
[Termination "ViktoriyaTarasova won by checkmate"]

1. d4 {[%clk 0:03:00.9]} 1... d5 {[%clk 0:02:59.3]} 2. c4 {[%clk 0:03:00.6]}
2... c6 {[%clk 0:02:59]} 3. Nf3 {[%clk 0:03:01.2]} 3... Nf6 {[%clk 0:02:50.2]}
4. Nc3 {[%clk 0:03:00.4]} 4... e6 {[%clk 0:02:44.8]} 5. Bg5 {[%clk 0:02:58.8]}
5... Be7 {[%clk 0:02:44.3]} 6. e3 {[%clk 0:02:58.3]} 6... O-O {[%clk 0:02:43.2]}
7. Bd3 {[%clk 0:02:58.4]} 7... h6 {[%clk 0:02:43.1]} 8. Bh4 {[%clk 0:02:56.8]}
8... Bd7 {[%clk 0:02:35.5]} 9. O-O {[%clk 0:02:55.9]} 9... Na6 {[%clk
0:02:32.7]} 10. a3 {[%clk 0:02:54.8]} 10... Nc7 {[%clk 0:02:32]} 11. Qc2 {[%clk
0:02:54.4]} 11... a5 {[%clk 0:02:31.9]} 12. Ne5 {[%clk 0:02:52]} 12... Nfe8
{[%clk 0:02:11.7]} 13. Bxe7 {[%clk 0:02:51.1]} 13... Qxe7 {[%clk 0:02:12.2]} 14.
f4 {[%clk 0:02:51.7]} 14... Nd6 {[%clk 0:02:01.5]} 15. c5 {[%clk 0:02:48.1]}
15... Nf5 {[%clk 0:01:57.7]} 16. Rae1 {[%clk 0:02:43]} 16... Qe8 {[%clk
0:01:28.9]} 17. g4 {[%clk 0:02:41.5]} 17... Ne7 {[%clk 0:01:28.6]} 18. f5 {[%clk
0:02:41.3]} 18... f6 {[%clk 0:01:16.2]} 19. Nxd7 {[%clk 0:02:32.5]} 19... Qxd7
{[%clk 0:01:15.5]} 20. Qg2 {[%clk 0:02:13.1]} 20... e5 {[%clk 0:00:45.6]} 21.
dxe5 {[%clk 0:02:01.8]} 21... fxe5 {[%clk 0:00:45.3]} 22. e4 {[%clk 0:01:51.6]}
22... dxe4 {[%clk 0:00:21.9]} 23. Bc4+ {[%clk 0:01:49]} 23... Kh8 {[%clk
0:00:20.8]} 24. Rxe4 {[%clk 0:01:49]} 24... Ned5 {[%clk 0:00:19.9]} 25. Qg3
{[%clk 0:01:28.3]} 25... Rae8 {[%clk 0:00:14.7]} 26. Rfe1 {[%clk 0:01:27.4]}
26... Nf6 {[%clk 0:00:08]} 27. R4e3 {[%clk 0:00:42.6]} 27... Qd4 {[%clk
0:00:07.9]} 28. g5 {[%clk 0:00:33.8]} 28... Qxc4 {[%clk 0:00:03.8]} 29. gxf6
{[%clk 0:00:30.4]} 29... Rxf6 {[%clk 0:00:03.8]} 30. Ne4 {[%clk 0:00:23.6]}
30... Rf7 {[%clk 0:00:02.4]} 31. Nd6 {[%clk 0:00:23.4]} 31... Qd5 {[%clk
0:00:02.6]} 32. Nxf7+ {[%clk 0:00:23]} 32... Qxf7 {[%clk 0:00:03.2]} 33. Rxe5
{[%clk 0:00:23.6]} 33... Rxe5 {[%clk 0:00:03.5]} 34. Qxe5 {[%clk 0:00:23.4]}
34... Nd5 {[%clk 0:00:03.7]} 35. Qe8+ {[%clk 0:00:22.9]} 35... Qxe8 {[%clk
0:00:04]} 36. Rxe8+ {[%clk 0:00:23.5]} 36... Kh7 {[%clk 0:00:04.7]} 37. Rb8
{[%clk 0:00:22.5]} 37... Ne3 {[%clk 0:00:04]} 38. Rxb7 {[%clk 0:00:20.8]} 38...
Nxf5 {[%clk 0:00:04.9]} 39. Rc7 {[%clk 0:00:20.3]} 39... Nd4 {[%clk 0:00:05.3]}
40. Kf2 {[%clk 0:00:20.1]} 40... Kg6 {[%clk 0:00:05]} 41. Ke3 {[%clk 0:00:19.9]}
41... Nf5+ {[%clk 0:00:05.2]} 42. Kf4 {[%clk 0:00:19.7]} 42... Nd4 {[%clk
0:00:05.3]} 43. Ke4 {[%clk 0:00:19.1]} 43... Ne6 {[%clk 0:00:04.2]} 44. Rxc6
{[%clk 0:00:19.1]} 44... Kf7 {[%clk 0:00:04.3]} 45. Ke5 {[%clk 0:00:18.2]} 45...
Ng5 {[%clk 0:00:03.3]} 46. Rc7+ {[%clk 0:00:18.4]} 46... Kf8 {[%clk 0:00:03.5]}
47. c6 {[%clk 0:00:17.8]} 47... Nf3+ {[%clk 0:00:03.8]} 48. Ke6 {[%clk
0:00:16.9]} 48... Nd4+ {[%clk 0:00:03.3]} 49. Kd5 {[%clk 0:00:17.1]} 49... Nb5
{[%clk 0:00:03.1]} 50. Rb7 {[%clk 0:00:16.3]} 50... Nc7+ {[%clk 0:00:01.5]} 51.
Rxc7 {[%clk 0:00:16.1]} 51... Ke8 {[%clk 0:00:02.4]} 52. Ra7 {[%clk 0:00:15.8]}
52... Kd8 {[%clk 0:00:03.3]} 53. Kd6 {[%clk 0:00:14.8]} 53... Kc8 {[%clk
0:00:03.4]} 54. Rxg7 {[%clk 0:00:13.7]} 54... a4 {[%clk 0:00:03.6]} 55. Rg8#
{[%clk 0:00:13.2]} 1-0

[Event "*** SCC Grand Prix: Titled Tuesday Blitz"]
[Site "Chess.com"]
[Date "2020.09.29"]
[Round "4"]
[White "Rap_woyska"]
[Black "CheckThis4"]
[Result "0-1"]
[WhiteElo "2367"]
[BlackElo "2607"]
[TimeControl "180+1"]
[EndTime "10:39:52 PDT"]
[Termination "CheckThis4 won on time"]

1. c4 {[%clk 0:03:00.9]} 1... e6 {[%clk 0:02:58.3]} 2. Nf3 {[%clk 0:03:00.1]}
2... d5 {[%clk 0:02:58.2]} 3. e3 {[%clk 0:03:01]} 3... Nf6 {[%clk 0:02:56.3]} 4.
b3 {[%clk 0:03:00.9]} 4... c5 {[%clk 0:02:52.9]} 5. Bb2 {[%clk 0:03:00.3]} 5...
a6 {[%clk 0:02:47.8]} 6. cxd5 {[%clk 0:02:50]} 6... exd5 {[%clk 0:02:47.5]} 7.
Be2 {[%clk 0:02:49.6]} 7... Nc6 {[%clk 0:02:47.1]} 8. O-O {[%clk 0:02:46.9]}
8... Bd6 {[%clk 0:02:46.8]} 9. d4 {[%clk 0:02:46]} 9... cxd4 {[%clk 0:02:46]}
10. Nxd4 {[%clk 0:02:46.9]} 10... O-O {[%clk 0:02:45.8]} 11. Nc3 {[%clk
0:02:35.3]} 11... Re8 {[%clk 0:02:42.7]} 12. Rc1 {[%clk 0:02:34.2]} 12... Nxd4
{[%clk 0:02:36.5]} 13. Qxd4 {[%clk 0:02:32.9]} 13... Be5 {[%clk 0:02:36.4]} 14.
Qd2 {[%clk 0:02:20.3]} 14... Qd6 {[%clk 0:01:52.7]} 15. f4 {[%clk 0:02:05.7]}
15... Bxc3 {[%clk 0:01:52.4]} 16. Qxc3 {[%clk 0:02:06.6]} 16... Bd7 {[%clk
0:01:33]} 17. Bf3 {[%clk 0:01:52.1]} 17... Bc6 {[%clk 0:01:20.5]} 18. Qd4 {[%clk
0:01:50.5]} 18... Qf8 {[%clk 0:01:18.9]} 19. Bc3 {[%clk 0:01:33.6]} 19... a5
{[%clk 0:01:15.9]} 20. b4 {[%clk 0:01:31]} 20... Ne4 {[%clk 0:01:10]} 21. Be1
{[%clk 0:01:05.1]} 21... Bb5 {[%clk 0:00:52.2]} 22. bxa5 {[%clk 0:00:58.1]}
22... Bxf1 {[%clk 0:00:51.2]} 23. Bb4 {[%clk 0:00:47.2]} 23... Nd6 {[%clk
0:00:48]} 24. Kxf1 {[%clk 0:00:47]} 24... Red8 {[%clk 0:00:28.8]} 25. Qxd5
{[%clk 0:00:45.6]} 25... Qe7 {[%clk 0:00:24.9]} 26. Rd1 {[%clk 0:00:33.8]} 26...
Ra6 {[%clk 0:00:20.2]} 27. e4 {[%clk 0:00:33.7]} 27... Qf6 {[%clk 0:00:14.6]}
28. e5 {[%clk 0:00:30.9]} 28... Qxf4 {[%clk 0:00:14.9]} 29. Bxd6 {[%clk
0:00:29.6]} 29... g5 {[%clk 0:00:15]} 30. Qe4 {[%clk 0:00:20.2]} 30... Rxa5
{[%clk 0:00:11.4]} 31. Qxf4 {[%clk 0:00:19.8]} 31... gxf4 {[%clk 0:00:12.3]} 32.
Ke1 {[%clk 0:00:15]} 32... Rxa2 {[%clk 0:00:11.6]} 33. Bxb7 {[%clk 0:00:14.1]}
33... Kg7 {[%clk 0:00:09.3]} 34. Bd5 {[%clk 0:00:13.6]} 34... Ra5 {[%clk
0:00:08.2]} 35. Bf3 {[%clk 0:00:12.3]} 35... Kg6 {[%clk 0:00:05.9]} 36. Be4+
{[%clk 0:00:11.3]} 36... f5 {[%clk 0:00:04.9]} 37. Bf3 {[%clk 0:00:11.3]} 37...
Re8 {[%clk 0:00:04.2]} 38. Rc1 {[%clk 0:00:10.8]} 38... Kg5 {[%clk 0:00:02.6]}
39. Rc2 {[%clk 0:00:09.3]} 39... h5 {[%clk 0:00:02.4]} 40. Kf2 {[%clk
0:00:09.2]} 40... h4 {[%clk 0:00:02.8]} 41. h3 {[%clk 0:00:09.7]} 41... Rb5
{[%clk 0:00:03.2]} 42. Kg1 {[%clk 0:00:07.6]} 42... Reb8 {[%clk 0:00:03.7]} 43.
Kh2 {[%clk 0:00:05.6]} 43... Rb1 {[%clk 0:00:04.6]} 44. Be7+ {[%clk 0:00:03.8]}
44... Kg6 {[%clk 0:00:03.9]} 45. Bxh4 {[%clk 0:00:03.4]} 45... Ra1 {[%clk
0:00:02.9]} 46. Rc6+ {[%clk 0:00:03.7]} 46... Kf7 {[%clk 0:00:03]} 47. Bd5+
{[%clk 0:00:03.4]} 47... Ke8 {[%clk 0:00:02.6]} 48. Re6+ {[%clk 0:00:02.4]}
48... Kd7 {[%clk 0:00:02.8]} 49. Rd6+ {[%clk 0:00:02.7]} 49... Kc7 {[%clk
0:00:03.7]} 50. Rc6+ {[%clk 0:00:01.8]} 50... Kd7 {[%clk 0:00:04.2]} 51. Rc2
{[%clk 0:00:02.3]} 51... Rbb1 {[%clk 0:00:03.5]} 52. g3 {[%clk 0:00:02.9]} 52...
Rh1+ {[%clk 0:00:04.3]} 53. Bxh1 {[%clk 0:00:02]} 53... f3 {[%clk 0:00:05.2]}
0-1

[Event "*** SCC Grand Prix: Titled Tuesday Blitz"]
[Site "Chess.com"]
[Date "2020.09.29"]
[Round "4"]
[White "paulrusan"]
[Black "sjam6687"]
[Result "0-1"]
[WhiteElo "2273"]
[BlackElo "2521"]
[TimeControl "180+1"]
[EndTime "10:39:56 PDT"]
[Termination "sjam6687 won by checkmate"]

1. e4 {[%clk 0:03:00.9]} 1... e5 {[%clk 0:02:59.8]} 2. Nf3 {[%clk 0:03:00.3]}
2... Nc6 {[%clk 0:03:00.3]} 3. Bc4 {[%clk 0:03:00.2]} 3... Bc5 {[%clk
0:02:59.2]} 4. b4 {[%clk 0:03:00]} 4... Bb6 {[%clk 0:02:55.1]} 5. a4 {[%clk
0:02:59.4]} 5... a6 {[%clk 0:02:49.7]} 6. O-O {[%clk 0:02:58.6]} 6... d6 {[%clk
0:02:39.3]} 7. Nc3 {[%clk 0:02:47.8]} 7... Nf6 {[%clk 0:02:30.6]} 8. Nd5 {[%clk
0:02:33.5]} 8... Nxd5 {[%clk 0:02:28.3]} 9. exd5 {[%clk 0:02:31.8]} 9... Ne7
{[%clk 0:02:28.7]} 10. Re1 {[%clk 0:02:29.1]} 10... Bg4 {[%clk 0:02:24.9]} 11.
h3 {[%clk 0:02:28.8]} 11... Bh5 {[%clk 0:02:23.6]} 12. Bb2 {[%clk 0:02:22.3]}
12... O-O {[%clk 0:02:22.9]} 13. a5 {[%clk 0:02:21.2]} 13... Ba7 {[%clk
0:02:22]} 14. d4 {[%clk 0:02:17.6]} 14... Bxf3 {[%clk 0:02:15.7]} 15. Qxf3
{[%clk 0:02:15.4]} 15... exd4 {[%clk 0:02:16.1]} 16. Rad1 {[%clk 0:02:09.8]}
16... Ng6 {[%clk 0:02:12.2]} 17. Bxd4 {[%clk 0:02:07.4]} 17... Bxd4 {[%clk
0:02:13.1]} 18. Rxd4 {[%clk 0:02:06.8]} 18... Ne5 {[%clk 0:02:08.1]} 19. Qh5
{[%clk 0:01:57]} 19... Qf6 {[%clk 0:01:53.7]} 20. Red1 {[%clk 0:01:48.9]} 20...
Rfe8 {[%clk 0:01:48.6]} 21. Bf1 {[%clk 0:01:47.8]} 21... Ng6 {[%clk 0:01:43.3]}
22. g3 {[%clk 0:01:43.4]} 22... Re5 {[%clk 0:01:36.1]} 23. Qg4 {[%clk
0:01:37.5]} 23... Rae8 {[%clk 0:01:35.4]} 24. h4 {[%clk 0:01:37]} 24... h5
{[%clk 0:01:19.7]} 25. Qh3 {[%clk 0:01:37]} 25... Re1 {[%clk 0:01:12.8]} 26. Qd7
{[%clk 0:01:30.8]} 26... R1e7 {[%clk 0:00:47.8]} 27. Qh3 {[%clk 0:01:26.9]}
27... Kh7 {[%clk 0:00:48.1]} 28. Bd3 {[%clk 0:01:23.3]} 28... Re1+ {[%clk
0:00:46.6]} 29. Kg2 {[%clk 0:01:04.9]} 29... Rxd1 {[%clk 0:00:44.6]} 30. Bxg6+
{[%clk 0:01:04.2]} 30... Qxg6 {[%clk 0:00:45]} 31. Rxd1 {[%clk 0:01:04]} 31...
Qxc2 {[%clk 0:00:42.7]} 32. Rd4 {[%clk 0:00:57.2]} 32... Re7 {[%clk 0:00:34.7]}
33. Rf4 {[%clk 0:00:53.7]} 33... Qd3 {[%clk 0:00:33.7]} 34. Qf5+ {[%clk
0:00:51]} 34... Qxf5 {[%clk 0:00:32.6]} 35. Rxf5 {[%clk 0:00:51.3]} 35... g6
{[%clk 0:00:30.2]} 36. Rf4 {[%clk 0:00:45.3]} 36... Kg7 {[%clk 0:00:30.4]} 37.
Rc4 {[%clk 0:00:43.8]} 37... Kf6 {[%clk 0:00:29.3]} 38. f4 {[%clk 0:00:44]}
38... Rd7 {[%clk 0:00:18.7]} 39. Kf3 {[%clk 0:00:42.5]} 39... Ke7 {[%clk
0:00:19.1]} 40. Ke4 {[%clk 0:00:37.7]} 40... Kd8 {[%clk 0:00:18.9]} 41. f5
{[%clk 0:00:37.5]} 41... Re7+ {[%clk 0:00:19.7]} 42. Kf4 {[%clk 0:00:37.6]}
42... Re5 {[%clk 0:00:20]} 43. fxg6 {[%clk 0:00:35.5]} 43... fxg6 {[%clk
0:00:20.9]} 44. Rd4 {[%clk 0:00:28.5]} 44... Rf5+ {[%clk 0:00:21]} 45. Ke4
{[%clk 0:00:27.9]} 45... Kd7 {[%clk 0:00:19.6]} 46. Rc4 {[%clk 0:00:23.1]} 46...
c6 {[%clk 0:00:18.1]} 47. dxc6+ {[%clk 0:00:22.6]} 47... bxc6 {[%clk 0:00:19]}
48. Rc1 {[%clk 0:00:21.8]} 48... Rb5 {[%clk 0:00:18.5]} 49. Rb1 {[%clk
0:00:18.7]} 49... c5 {[%clk 0:00:18.6]} 50. Kd5 {[%clk 0:00:17.4]} 50... Rxb4
{[%clk 0:00:18.7]} 51. Rxb4 {[%clk 0:00:13.8]} 51... cxb4 {[%clk 0:00:19.6]} 52.
Kc4 {[%clk 0:00:14.3]} 52... Kc6 {[%clk 0:00:19.9]} 53. Kxb4 {[%clk 0:00:14.6]}
53... d5 {[%clk 0:00:20.2]} 54. Kc3 {[%clk 0:00:14]} 54... Kc5 {[%clk
0:00:20.3]} 55. Kd3 {[%clk 0:00:14.2]} 55... d4 {[%clk 0:00:20.4]} 56. Kd2
{[%clk 0:00:14.5]} 56... Kc4 {[%clk 0:00:20.5]} 57. Kc2 {[%clk 0:00:14.9]} 57...
d3+ {[%clk 0:00:20.8]} 58. Kd2 {[%clk 0:00:15.3]} 58... Kd4 {[%clk 0:00:21.2]}
59. Kd1 {[%clk 0:00:15.6]} 59... Kc3 {[%clk 0:00:21.1]} 60. Kc1 {[%clk
0:00:15.6]} 60... d2+ {[%clk 0:00:20.4]} 61. Kd1 {[%clk 0:00:15.8]} 61... Kd3
{[%clk 0:00:17.4]} 62. g4 {[%clk 0:00:15.3]} 62... hxg4 {[%clk 0:00:18.3]} 63.
h5 {[%clk 0:00:15.2]} 63... g3 {[%clk 0:00:19.2]} 64. hxg6 {[%clk 0:00:12.5]}
64... g2 {[%clk 0:00:20.1]} 65. g7 {[%clk 0:00:12.3]} 65... g1=R# {[%clk
0:00:18.2]} 0-1

[Event "*** SCC Grand Prix: Titled Tuesday Blitz"]
[Site "Chess.com"]
[Date "2020.09.29"]
[Round "4"]
[White "Zhigalko_Sergei"]
[Black "anon102030"]
[Result "1-0"]
[WhiteElo "2945"]
[BlackElo "2744"]
[TimeControl "180+1"]
[EndTime "10:39:59 PDT"]
[Termination "Zhigalko_Sergei won by checkmate"]

1. e4 {[%clk 0:03:00.9]} 1... e5 {[%clk 0:02:59.1]} 2. Nf3 {[%clk 0:03:01.1]}
2... Nc6 {[%clk 0:02:59.4]} 3. Bb5 {[%clk 0:03:01]} 3... Nge7 {[%clk 0:02:58.9]}
4. O-O {[%clk 0:03:00.7]} 4... d6 {[%clk 0:02:58.7]} 5. d4 {[%clk 0:03:00.3]}
5... Bd7 {[%clk 0:02:58.5]} 6. Nc3 {[%clk 0:03:00.8]} 6... Ng6 {[%clk
0:02:57.1]} 7. Re1 {[%clk 0:02:50.3]} 7... Be7 {[%clk 0:02:56.2]} 8. h3 {[%clk
0:02:46.3]} 8... O-O {[%clk 0:02:51.5]} 9. Be3 {[%clk 0:02:46.7]} 9... Kh8
{[%clk 0:02:43.4]} 10. Qe2 {[%clk 0:02:06.5]} 10... f5 {[%clk 0:02:25.1]} 11.
exf5 {[%clk 0:02:03.3]} 11... Rxf5 {[%clk 0:02:00.8]} 12. Rad1 {[%clk
0:01:57.5]} 12... exd4 {[%clk 0:01:56.6]} 13. Nxd4 {[%clk 0:01:37.4]} 13... Nxd4
{[%clk 0:01:55.9]} 14. Bxd4 {[%clk 0:01:33.3]} 14... Bf6 {[%clk 0:01:52.5]} 15.
Bxf6 {[%clk 0:01:28.6]} 15... Rxf6 {[%clk 0:01:47.4]} 16. Bxd7 {[%clk
0:01:16.5]} 16... Qxd7 {[%clk 0:01:46.8]} 17. Nd5 {[%clk 0:01:17.1]} 17... Rf7
{[%clk 0:01:43.6]} 18. Qe6 {[%clk 0:01:11.4]} 18... Qxe6 {[%clk 0:01:42.6]} 19.
Rxe6 {[%clk 0:01:12.3]} 19... Raf8 {[%clk 0:01:38.4]} 20. f3 {[%clk 0:01:06.6]}
20... c6 {[%clk 0:01:35.3]} 21. Ne3 {[%clk 0:00:49.9]} 21... d5 {[%clk
0:01:35.5]} 22. Ng4 {[%clk 0:00:42.2]} 22... Nf4 {[%clk 0:01:32.1]} 23. Ree1
{[%clk 0:00:39.6]} 23... h6 {[%clk 0:01:23.9]} 24. Kh2 {[%clk 0:00:36.2]} 24...
Kh7 {[%clk 0:01:22.9]} 25. Ne5 {[%clk 0:00:34.6]} 25... Re7 {[%clk 0:01:13.9]}
26. g3 {[%clk 0:00:33.5]} 26... Ne6 {[%clk 0:01:00.3]} 27. Nd3 {[%clk
0:00:27.3]} 27... Rfe8 {[%clk 0:00:50.2]} 28. Kg2 {[%clk 0:00:27.6]} 28... Nd4
{[%clk 0:00:47.2]} 29. Rxe7 {[%clk 0:00:27.9]} 29... Rxe7 {[%clk 0:00:48]} 30.
Rd2 {[%clk 0:00:28.4]} 30... Nf5 {[%clk 0:00:46.1]} 31. Kf2 {[%clk 0:00:26.1]}
31... g5 {[%clk 0:00:43.9]} 32. g4 {[%clk 0:00:15]} 32... Nh4 {[%clk 0:00:42.4]}
33. f4 {[%clk 0:00:12.8]} 33... gxf4 {[%clk 0:00:40.7]} 34. Nxf4 {[%clk
0:00:13.7]} 34... Ng6 {[%clk 0:00:37.8]} 35. Nh5 {[%clk 0:00:10.7]} 35... Ne5
{[%clk 0:00:37.4]} 36. b3 {[%clk 0:00:09.4]} 36... Rf7+ {[%clk 0:00:37.1]} 37.
Kg2 {[%clk 0:00:10]} 37... Ng6 {[%clk 0:00:36.2]} 38. Re2 {[%clk 0:00:09]} 38...
Re7 {[%clk 0:00:31.8]} 39. Rxe7+ {[%clk 0:00:07.5]} 39... Nxe7 {[%clk
0:00:32.7]} 40. Kf3 {[%clk 0:00:07]} 40... Ng6 {[%clk 0:00:28.6]} 41. Ke3 {[%clk
0:00:05.4]} 41... Kg8 {[%clk 0:00:27.6]} 42. Kd4 {[%clk 0:00:05.6]} 42... Kf7
{[%clk 0:00:27.7]} 43. c4 {[%clk 0:00:05.5]} 43... dxc4 {[%clk 0:00:26.7]} 44.
Kxc4 {[%clk 0:00:06.3]} 44... Ke6 {[%clk 0:00:26]} 45. Kd4 {[%clk 0:00:06.9]}
45... Ne5 {[%clk 0:00:23.2]} 46. Ke4 {[%clk 0:00:05.5]} 46... c5 {[%clk
0:00:18.1]} 47. Ng7+ {[%clk 0:00:06]} 47... Kf6 {[%clk 0:00:17.2]} 48. Nf5
{[%clk 0:00:06.9]} 48... Nf7 {[%clk 0:00:16.6]} 49. h4 {[%clk 0:00:06.3]} 49...
b6 {[%clk 0:00:14.7]} 50. Nxh6 {[%clk 0:00:06.7]} 50... Nd6+ {[%clk 0:00:10.9]}
51. Kf4 {[%clk 0:00:07]} 51... Nb5 {[%clk 0:00:11.8]} 52. h5 {[%clk 0:00:05.7]}
52... Nc3 {[%clk 0:00:10.8]} 53. g5+ {[%clk 0:00:06.1]} 53... Kg7 {[%clk
0:00:11.4]} 54. Nf5+ {[%clk 0:00:06.6]} 54... Kh8 {[%clk 0:00:09.9]} 55. g6
{[%clk 0:00:06.8]} 55... Nxa2 {[%clk 0:00:08.5]} 56. h6 {[%clk 0:00:07.3]} 56...
Nc3 {[%clk 0:00:06.4]} 57. g7+ {[%clk 0:00:07.3]} 57... Kh7 {[%clk 0:00:06.2]}
58. Ne7 {[%clk 0:00:08.2]} 58... b5 {[%clk 0:00:02.2]} 59. g8=Q+ {[%clk
0:00:08.3]} 59... Kxh6 {[%clk 0:00:03.1]} 60. Qg6# {[%clk 0:00:09]} 1-0

[Event "*** SCC Grand Prix: Titled Tuesday Blitz"]
[Site "Chess.com"]
[Date "2020.09.29"]
[Round "4"]
[White "Ze-Pequeno"]
[Black "ApacheSVD"]
[Result "0-1"]
[WhiteElo "2253"]
[BlackElo "2421"]
[TimeControl "180+1"]
[EndTime "10:40:02 PDT"]
[Termination "ApacheSVD won by resignation"]

1. e4 {[%clk 0:03:00.5]} 1... c5 {[%clk 0:02:59.6]} 2. Nf3 {[%clk 0:03:00.2]}
2... d6 {[%clk 0:02:59.6]} 3. d4 {[%clk 0:03:00.7]} 3... cxd4 {[%clk 0:02:59.7]}
4. Nxd4 {[%clk 0:03:01.6]} 4... Nf6 {[%clk 0:03:00.2]} 5. Nc3 {[%clk 0:03:02.1]}
5... g6 {[%clk 0:03:00.7]} 6. Be3 {[%clk 0:03:01.2]} 6... Bg7 {[%clk 0:03:01.1]}
7. f3 {[%clk 0:03:01.7]} 7... O-O {[%clk 0:03:01.5]} 8. Qd2 {[%clk 0:03:02.2]}
8... Nc6 {[%clk 0:03:02.1]} 9. O-O-O {[%clk 0:03:02.5]} 9... d5 {[%clk
0:03:02.5]} 10. exd5 {[%clk 0:03:03.4]} 10... Nxd5 {[%clk 0:03:02.1]} 11. Nxc6
{[%clk 0:03:03.8]} 11... bxc6 {[%clk 0:03:03]} 12. Bd4 {[%clk 0:03:04.2]} 12...
Bxd4 {[%clk 0:03:03.6]} 13. Qxd4 {[%clk 0:03:03.7]} 13... Qb6 {[%clk 0:03:04.5]}
14. Na4 {[%clk 0:03:04.2]} 14... Qa5 {[%clk 0:03:04.3]} 15. b3 {[%clk
0:03:04.6]} 15... Rb8 {[%clk 0:02:57.3]} 16. Qc5 {[%clk 0:02:39]} 16... Qc7
{[%clk 0:02:54.4]} 17. g3 {[%clk 0:02:38.6]} 17... Be6 {[%clk 0:02:47.1]} 18.
Bc4 {[%clk 0:02:28.7]} 18... Rfd8 {[%clk 0:02:44.7]} 19. Rhe1 {[%clk 0:02:27.7]}
19... Rd6 {[%clk 0:02:35.8]} 20. Qf2 {[%clk 0:00:45.7]} 20... Rb4 {[%clk
0:02:30.2]} 21. Qc5 {[%clk 0:00:37.6]} 21... Rb8 {[%clk 0:02:22.9]} 22. Qf2
{[%clk 0:00:37.1]} 22... Qa5 {[%clk 0:02:22.7]} 23. Qc5 {[%clk 0:00:33.4]} 23...
Qb4 {[%clk 0:01:42.7]} 24. Qxb4 {[%clk 0:00:31.1]} 24... Rxb4 {[%clk 0:01:33.2]}
25. Nc5 {[%clk 0:00:30.1]} 25... Kg7 {[%clk 0:01:03.5]} 26. Nxe6+ {[%clk
0:00:25.7]} 26... fxe6 {[%clk 0:01:04.4]} 27. Bf1 {[%clk 0:00:17.8]} 27... Kf6
{[%clk 0:01:04.4]} 28. Kb2 {[%clk 0:00:17]} 28... a5 {[%clk 0:01:02.7]} 29. c3
{[%clk 0:00:16.5]} 29... Rb8 {[%clk 0:00:58.5]} 30. Kc2 {[%clk 0:00:17]} 30...
Rbd8 {[%clk 0:00:52.2]} 31. Rd3 {[%clk 0:00:14.8]} 31... Kf7 {[%clk 0:00:31.9]}
32. a3 {[%clk 0:00:15.1]} 32... Kf6 {[%clk 0:00:31.9]} 33. c4 {[%clk 0:00:14.1]}
33... Nb6 {[%clk 0:00:26.1]} 34. Red1 {[%clk 0:00:14.5]} 34... e5 {[%clk
0:00:16.8]} 35. c5 {[%clk 0:00:13.3]} 35... Rxd3 {[%clk 0:00:16.2]} 36. Rxd3
{[%clk 0:00:12.5]} 36... Nd5 {[%clk 0:00:16.7]} 37. Bg2 {[%clk 0:00:11.4]} 37...
e6 {[%clk 0:00:13.6]} 38. Bf1 {[%clk 0:00:11]} 38... Rb8 {[%clk 0:00:13.4]} 39.
Be2 {[%clk 0:00:10.9]} 39... Kf5 {[%clk 0:00:13.6]} 40. Bd1 {[%clk 0:00:10.5]}
40... e4 {[%clk 0:00:12.4]} 41. fxe4+ {[%clk 0:00:11.4]} 41... Kxe4 {[%clk
0:00:13.3]} 42. Bf3+ {[%clk 0:00:11.8]} 42... Ke5 {[%clk 0:00:13.5]} 43. Bxd5
{[%clk 0:00:11.2]} 43... exd5 {[%clk 0:00:13]} 44. Kc3 {[%clk 0:00:11.2]} 44...
d4+ {[%clk 0:00:09.5]} 45. Kc4 {[%clk 0:00:10.5]} 45... Rd8 {[%clk 0:00:09.8]}
46. b4 {[%clk 0:00:10.6]} 46... axb4 {[%clk 0:00:09.9]} 47. axb4 {[%clk
0:00:11.5]} 47... Ke4 {[%clk 0:00:10.1]} 48. h3 {[%clk 0:00:10.4]} 48... h5
{[%clk 0:00:10.1]} 49. g4 {[%clk 0:00:10.3]} 49... hxg4 {[%clk 0:00:10.2]} 50.
hxg4 {[%clk 0:00:11.2]} 50... g5 {[%clk 0:00:10.8]} 51. Rd1 {[%clk 0:00:10.1]}
51... Ke3 {[%clk 0:00:10.6]} 52. b5 {[%clk 0:00:10]} 52... cxb5+ {[%clk
0:00:10.7]} 53. Kxb5 {[%clk 0:00:10.9]} 53... d3 {[%clk 0:00:11.3]} 54. c6
{[%clk 0:00:10.9]} 54... Ke2 {[%clk 0:00:11.9]} 55. Rh1 {[%clk 0:00:09.8]} 55...
d2 {[%clk 0:00:12.2]} 56. c7 {[%clk 0:00:10.1]} 56... Rc8 {[%clk 0:00:12.1]} 57.
Kc6 {[%clk 0:00:10.4]} 57... d1=Q {[%clk 0:00:12.2]} 58. Rxd1 {[%clk 0:00:10.9]}
58... Kxd1 {[%clk 0:00:13.1]} 59. Kd7 {[%clk 0:00:11.8]} 59... Rxc7+ {[%clk
0:00:13.1]} 60. Kxc7 {[%clk 0:00:12.7]} 60... Ke2 {[%clk 0:00:14]} 61. Kd6
{[%clk 0:00:13.6]} 61... Kf3 {[%clk 0:00:14.9]} 62. Ke5 {[%clk 0:00:14.5]} 62...
Kxg4 {[%clk 0:00:15.8]} 63. Ke4 {[%clk 0:00:14.6]} 63... Kg3 {[%clk 0:00:16.4]}
64. Ke3 {[%clk 0:00:15.5]} 64... g4 {[%clk 0:00:17]} 0-1